{"text_format":"2","workbook":"xlsx","n_sheets":3,"sheets":["Лист1","Лист2","Лист3"],"not_rendered":{"charts":0,"images":1,"macros":0,"external_links":0,"defined_names":0,"comments":0,"pivot_tables":0},"unopened":[],"bounds":{"document_bytes":16777216,"sheet_cells":100000,"run_cost":"one","rows_first":2000,"rows_last":500,"rows_between":2000,"halvings":0,"cell_chars":16384,"cell_head_chars":4096},"cells_cut":0,"cells_raw":0,"read":"whole","date_system":"1900"}

{"sheet":"Лист1","index":0,"n_rows":943,"n_cols":7,"rows_kept":943,"cut":false,"hidden":false,"merged":[[10,1,10,5],[11,0,12,0],[11,1,12,1],[11,2,12,2],[11,3,11,6]]}
{"$rows_empty":11}
["№","Имя","Город","Bonus"]
[null,null,null,"Начислено","Расход","Дата","Остаток"]
[1,"Косов Сергей","Moscow",1199,null,null,{"$f":"D14-E14","v":1199}]
[2,"Agonyan Armen","Харьков",150,null,null,{"$f":"D15-E15","v":150}]
[3,"Altuntas","Турция",10,null,null,10]
[4,"Amakiri Uzhantan","Kharkiv",5,null,null,5]
[5,"Atilla Suren","Kharkiv",20,null,null,20]
[6,"Babursah Baycan Orcun","Antalia",104,null,null,104]
[7,"Can Tibet","Турция",159,null,null,159]
[8,"Gulmamedov Ali","Lebedin",113,null,null,113]
[9,"Iglu",null,5,null,null,5]
[10,"Ilmuradov Merdan","Харьков",15,null,null,15]
[11,"Kazimergin Karagah",null,99,null,null,99]
[12,"Khamid Rabil ","Kharkiv",423,null,null,423]
[13,"Kim","Kyiv",24,null,null,24]
[14,"Mario ","Italy",596,null,null,596]
[15,"Markosyan Andrush","Kyiv",96,null,null,96]
[16,"Markosyan Shagen ","Kyiv",384,null,null,384]
[17,"Mkrytchan Arsen","Kharkiv",33,null,null,33]
[18,"Mkrytchan Samvell","Kharkiv",537,null,null,537]
[19,"Mun Darbauch","Kharkiv",17,null,null,17]
[20,"Murat Erdi","Турция",40,null,null,40]
[21,"Nguen Zgun","Киев",198,null,null,198]
[22,"Okhoyan Gevorg","Запорожье",130,null,null,130]
[23,"Oskar","Kyiv",12,null,null,12]
[24,"Pogosyan Hachotur","Kharkiv",79,null,null,79]
[25,"Ranyai Bahmon","Kharkiv",5,null,null,5]
[26,"Renat","Kyiv",54,null,null,54]
[27,"Saidov Akar","Poltava",24,null,null,24]
[28,"Stella Jino","Италия",35,null,null,35]
[29,"Torchin Gor","Kyiv",12,null,null,12]
[30,"Z. Georgyi","Kyiv",24,null,null,24]
[31,"Zakhidov Dzhoni","Kharkiv",44,null,null,44]
[32,"Абрамчук Иван","Ровно",135,null,null,135]
[33,"Абросимов",null,10,null,null,10]
[34,"Агонян Армен","Kharkiv",44,null,null,44]
[35,"Агусевич Станислав","Черновцы",35,null,null,35]
[36,"Адаменко Дима","Kyiv",24,null,null,24]
{"$rows_empty":10}
[37,"Азаров Андрей","Харьков",5,null,null,{"$f":"D60-E60","v":5}]
[38,"Азизов Тимур","Киев",70,null,null,70]
[39,"Алахвердов Станислав","Kharkiv",288,null,null,288]
[40,"Алейнеков Александр",null,30,null,null,30]
[41,"Алексеев Виктор","Харьков",5,null,null,5]
[42,"Алибаба","Kharkiv",99,null,null,99]
[43,"Алтунян Армен","Васильевка",35,null,null,35]
[44,"Амир",null,35,null,null,35]
[45,"Анацкий Евгений","Полтава",159,null,null,159]
[46,"Андрусяк Никита","Kyiv",192,null,null,192]
[47,"Андрушенко Ростислав","Харьков",35,null,null,35]
[48,"Андрюха",null,35,null,null,35]
[49,"Антонов Александр","Kharkiv",6,null,null,6]
[50,"Антонов Сергей","Харьков",10,null,null,10]
[51,"Ануфреев Эдуард","Днепр",70,null,null,70]
[52,"Артемов Виталий","Харьков",5,null,null,5]
[53,"Аулов Виктор","Kharkiv",10,null,null,10]
[54,"Бабенко Алексей ","Харьков",20,null,null,20]
[55,"Бабенко Катерина","Харьков",90,null,null,90]
[56,"Бабисов Вадим","Ровно",369,null,null,369]
[57,"Багрий Ярослав","Сумы",20,null,null,20]
[58,"Бадуляк Ярослав ","Ивано-Франковск",105,null,null,105]
[59,"Базыльчук Олег","Днепр",115,null,null,115]
[60,"Балик","Kyiv",96,null,null,96]
[61,"Баранков Д",null,40,null,null,40]
[62,"Баранков Денис","Киев",70,null,null,70]
[63,"Баранов Максим","Kyiv",86,null,null,86]
[64,"Басистый Олег","Kirovograd",27,null,null,27]
[65,"Батурина Светлана","Полтава",5,null,null,5]
[66,"Башинский Вадим","Запорожье",5,null,null,5]
[67,"Башлай Роман","Kharkiv",5,null,null,5]
[68,"Белинский Дмитрий","Киев",210,null,null,210]
[69,"Белов Михаил","Kharkiv",17,null,null,17]
[70,"Беловородько Денис","Желтые воды",35,null,null,35]
[71,"Белоус Максим","Запорожье",190,null,null,190]
[72,"Белый Денис","Kyiv",57,null,null,57]
[73,"Беляев Виталий","Днепродержинск",70,null,null,70]
[74,"Беляев Юрий","Kharkiv",50,null,null,50]
[75,"Березяк Андрей","Львов",35,null,null,35]
[76,"Берлянд Артем","Харьков",70,null,null,70]
{"$rows_empty":10}
[77,"Биленко Александр","Черкассы",40,null,null,{"$f":"D110-E110","v":40}]
[78,"Билык Владислав","Харьков",15,null,null,15]
[79,"Билык Владислав","Kharkiv",6,null,null,6]
[80,"Бильченко Андрей","Kharkiv",20,null,null,20]
[81,"Бирюков Даниил","Kharkiv",59,null,null,59]
[82,"Бичиковский Роман","Донецк",35,null,null,35]
[83,"Благин Михаил","Харьков",40,null,null,40]
[84,"Близнюк Сергей","Краматорск",328,null,null,328]
[85,"Бловатный Артем","Киев",35,null,null,35]
[86,"Бобин Тимур","Kharkiv",22,null,null,22]
[87,"Бобрусь Дмитрий","Kharkiv",81,null,null,81]
[88,"Богданек Станислав","Kharkiv",26,null,null,26]
[89,"Богданов Ренат","Киев",420,null,null,420]
[90,"Богданюк Станислав","Харьков",35,null,null,35]
[91,"Бодяг Александр",null,5,null,null,5]
[92,"Бойко Константин","Харьков",35,null,null,35]
[93,"Болотов Сергей","Киев",35,null,null,35]
[94,"Бондарев Евгений","Харьков",5,null,null,5]
[95,"Бондаренко","Kharkiv",10,null,null,10]
[96,"Бондаренко Андрей","Ровно",140,null,null,140]
[97,"Бондаренко Артем","Kharkiv",6,null,null,6]
[98,"Бондаренко Евгений","Харьков",35,null,null,35]
[99,"Бондаренко Сергей","Чернигов",245,null,null,245]
[100,"Бондарь Дмитрий","Харьков",100,null,null,100]
[101,"Бондарь Евгений",null,5,null,null,5]
[102,"Бондарь К.","Харьков",35,null,null,35]
[103,"Бондарь Мирослав","Kharkiv",6,null,null,6]
[104,"Боринец Алексей","Киев",264,null,null,264]
[105,"Боровков Алекс","Kharkiv",20,null,null,20]
[106,"Бояджан Михаил","Kharkiv",88,null,null,88]
[107,"Бронин Владимир","Харьков",5,null,null,5]
[108,"Бронштейн Станислав","Киев",60,null,null,60]
[109,"Брояк Дмитрий","Киев",35,null,null,35]
[110,"Буданов Дмитрий","Kyiv",12,null,null,12]
[111,"Будник Вадим ","Ковель",105,null,null,105]
[112,"Бурля Николоай","Днепрорудный",10,null,null,10]
[113,"Буртелей Александр","Чугуев",20,null,null,20]
[114,"Бутко Алина","Kharkiv",57,null,null,57]
[115,"Бушуй Алексей",null,35,null,null,35]
[116,"Вайман Олег",null,40,null,null,40]
{"$rows_empty":10}
[117,"Вайнер",null,297,null,null,{"$f":"D160-E160","v":297}]
[118,"Вапняр Дима","Kharkiv",6,null,null,6]
[119,"Варвут Владимир","Kharkiv",37,null,null,37]
[120,"Василенко Анжелла","Запорожье",5,null,null,5]
[121,"Васильченко А","Запорожье",40,null,null,40]
[122,"Васковский Олег","Kyiv",150,null,null,150]
[123,"Верецун Роман",null,368,null,null,368]
[124,"Вержун Алексей","Kharkiv",20,null,null,20]
[125,"Вериго Глеб","Kharkiv",6,null,null,6]
[126,"Вертийко Павел","Киев",364,null,null,364]
[127,"Вертянов Василий","Киев",70,null,null,70]
[128,"Виговский Даниил","Kyiv",216,null,null,216]
[129,"Виниченко Павел","Харьков",5,null,null,5]
[130,"Винников Олег","Мелитополь",35,null,null,35]
[131,"Висильчаков Николай","Харьков",35,null,null,35]
[132,"Вихтюк Александр","Kyiv",138,null,null,138]
[133,"Вишневый Артем","Мелитополь",35,null,null,35]
[134,"Вовченко Игорь","Харьков",15,null,null,15]
[135,"Вовченко Константин","Kharkiv",317,null,null,317]
[136,"Водянник Роман","Киев",100,null,null,100]
[137,"Волков Станислав","Kharkiv",20,null,null,20]
[138,"Воронин Владимир","Kyiv",12,null,null,12]
[139,"Воронов Владислав","Kyiv",12,null,null,12]
[140,"Выравой Михаил","Kharkiv",35,null,null,35]
[141,"Высочин Дима","Kharkiv",70,null,null,70]
[142,"Гаврилишин Виталий","Kyiv",12,null,null,12]
[143,"Гаврюшенко Вячеслав","Kharkiv",44,null,null,44]
[144,"Гаврющенков Евгений",null,40,null,null,40]
[145,"Гаджабов Арсений","Kharkiv",7,null,null,7]
[146,"Гайворонский Юрий","Днепр",35,null,null,35]
[147,"Гайструк Сергей","Харьков",170,null,null,170]
[148,"Галатенко Стас","Киев",555,null,null,555]
[149,"Ганзюков Александр","Kharkiv",193,null,null,193]
[150,"Гарбузов Юрий","Харьков",5,null,null,5]
[151,"Гасонгаев Агасян","Kharkiv",25,null,null,25]
[152,"Гафиков Андрей",null,5,null,null,5]
[153,"Гацко Федор","Киев",130,null,null,130]
[154,"Гашпер Александр","Львов",35,null,null,35]
[155,"Гвоздецкий Арсений","Kharkiv",323,null,null,323]
[156,"Гельман Борис","Kharkiv",101,null,null,101]
{"$rows_empty":10}
[157,"Генералов Евгений","Санкт-Перербург",95,null,null,{"$f":"D210-E210","v":95}]
[158,"Герц Алина","Kyiv",12,null,null,12]
[159,"Гершман Вячеслав","Харьков",499,null,null,499]
[160,"Гладышев Денис","Харьков",35,null,null,35]
[161,"Глубокий Максим","Kharkiv",139,null,null,139]
[162,"Глущенко Игорь","Киев",470,null,null,470]
[163,"Говоруха Алексей","Харьков",155,null,null,155]
[164,"Гогоша Александр","Харьков",5,null,null,5]
[165,"Гожа",null,30,null,null,30]
[166,"Головань Кирилл","Kharkiv",445,null,null,445]
[167,"Голота Антон","Харьков",35,null,null,35]
[168,"Голуб Богдан","Kharkiv",5,null,null,5]
[169,"Голубенко Сергей","Kharkiv",114,null,null,114]
[170,"Гондарук Сергей","Одесса",80,null,null,80]
[171,"Гончаренко Влад","Харьков",70,null,null,70]
[172,"Гончаров Николай","Химки",35,null,null,35]
[173,"Гончаров Радион",null,30,null,null,30]
[174,"Гордиенко Дмитрий","Бердянск",5,null,null,5]
[175,"Гордиенко Николай","Kharkiv",15,null,null,15]
[176,"Гордиенко Роман","Kharkiv",199,null,null,199]
[177,"Горобий Артем","Мелитополь",105,null,null,105]
[178,"Горшков Андрей","Kharkiv",239,null,null,239]
[179,"Горяной Роман","Желтые воды",145,null,null,145]
[180,"Господенко Сергей","Харьков",5,null,null,5]
[181,"Гребенюк Сергей","Мелитополь",70,null,null,70]
[182,"Гречко Алексей",null,90,null,null,90]
[183,"Гриценко",null,20,null,null,20]
[184,"Грищенко СВ","Kharkiv",44,null,null,44]
[185,"Грищенко Сергей",null,70,null,null,70]
[186,"Груздо Эдуард","Kharkiv",18,null,null,18]
[187,"Гудзь Алина","Харьков",50,null,null,50]
[188,"Гудзь Евгений","Харьков",90,null,null,90]
[189,"Гура Анастасия","Харьков",10,null,null,10]
[190,"Гусейнов Абдул","Киев",368,null,null,368]
[191,"Гутый Михаил","Луцк",602,null,null,602]
[192,"Давиденко А","Харьков",85,null,null,85]
[193,"Данилов Николай","Ровно",100,null,null,100]
[194,"Дворецкий Эдик","Kharkiv",52,null,null,52]
[195,"Дворковой Руслан","Kyiv",12,null,null,12]
[196,"Дегтярев Дима","Kharkiv",36,null,null,36]
{"$rows_empty":10}
[197,"Демченко Богдан","Обухов",35,null,null,{"$f":"D260-E260","v":35}]
[198,"Деревянко Сергей",null,15,null,null,15]
[199,"Держикян Сергей","Kharkiv",168,null,null,168]
[200,"Джафари","Иран",5,null,null,5]
[201,"Джетора Анатолий","Kharkiv",25,null,null,25]
[202,"Джуджа Ярослав","Kharkiv",188,null,null,188]
[203,"Дзюба Антон","Lugansk",5,null,null,5]
[204,"Диденко Дмитрий","Kharkiv",228,null,null,228]
[205,"Днепр Андрей",null,100,null,null,100]
[206,"Добровольский",null,10,null,null,10]
[207,"Долгих Антон","Kharkiv",108,null,null,108]
[208,"Долгих Антон","Kharkiv",20,null,null,20]
[209,"Доманов Константин","Kharkiv",6,null,null,6]
[210,"Донской Дмитрий","Николаев",339,null,null,339]
[211,"Дорофтев Андрей","Kyiv",192,null,null,192]
[212,"Дорошев Георгий","Ровно",448,null,null,448]
[213,"Драчев Роман(Глубокий)","Таллин",30,null,null,30]
[214,"Драчков Роман","Таллин",240,null,null,240]
[215,"Дрокин Владимир",null,169,null,null,169]
[216,"Дронюк Юрий","Ивано-Франковск",35,null,null,35]
[217,"Дубина Богдан","Kharkiv",30,null,null,30]
[218,"Дудников Виктор","Киев",35,null,null,35]
[219,"Дуц Александр","Киев",299,null,null,299]
[220,"Евдокимов Олег","Kharkiv",50,null,null,50]
[221,"Евсеев Юрий","Харьков",5,null,null,5]
[222,"Евсеенко Д","Харьков",85,null,null,85]
[223,"Евченко Алексей","Киев",70,null,null,70]
[224,"Егоров Егор","Kharkiv",64,null,null,64]
[225,"Ежков Дмитрий","Киров",10,null,null,10]
[226,"Елисюченко Егор","Харьков",85,null,null,85]
[227,"Ельзяциев Денис",null,35,null,null,35]
[228,"Емельянов Евгений","Kyiv",12,null,null,12]
[229,"Емченко Сергей","Kyiv",12,null,null,12]
[230,"Ерашев Сергей","Kyiv",288,null,null,288]
[231,"Ермолаев Даниил","Днепр",210,null,null,210]
[232,"Ершёв Алексей","Харьков",10,null,null,10]
[233,"Ефимов Игорь","Kharkiv",20,null,null,20]
[234,"Ефремов Евгений",null,30,null,null,30]
[235,"Жейнов Денис","Запорожье",95,null,null,95]
[236,"Железнов Александр","Чернигов",135,null,null,135]
{"$rows_empty":10}
[237,"Животченко Артем","Харьков",70,null,null,{"$f":"D310-E310","v":70}]
[238,"Животченко Артем(Кузьмин)","Харьков",35,null,null,35]
[239,"Жилин Андрей","Kharkiv",44,null,null,44]
[240,"Жирик Влад","Ровно",175,null,null,175]
[241,"Жирнов Александр","Киев",414,null,null,414]
[242,"Заец Виталий","Харьков",189,null,null,189]
[243,"Закрепа Антон","Kyiv",24,null,null,24]
[244,"Залевский Сергей","Белая Церковь",35,null,null,35]
[245,"Заславский Дима","Kharkiv",20,null,null,20]
[246,"Зацаринин Сергей","Харьков",5,null,null,5]
[247,"Згоранець Андрей","Любомль",135,null,null,135]
[248,"Зелинский Олег","Ternopil",290,null,null,290]
[249,"Зенин Дмитрий","Moscow",203,null,null,203]
[250,"Злотник Александр","Ровно",130,null,null,130]
[251,"Змеев Владимир","Харьков",5,null,null,5]
[252,"Зорин Денис","Харьков",64,null,null,64]
[253,"Зубик Вит","Чугуев",10,null,null,10]
[254,"Иванив Дмитрий","Kharkiv",6,null,null,6]
[255,"Иванив Роман","Dnepr",22,null,null,22]
[256,"Иванов Александр","Ужгород",198,null,null,198]
[257,"Иванов В","Киев",30,null,null,30]
[258,"Иванов Денис",null,30,null,null,30]
[259,"Иванов Павел",null,198,null,null,198]
[260,"Ивасюк Максим","Kharkiv",56,null,null,56]
[261,"Игвеконфидени Нигерил",null,15,null,null,15]
[262,"Ильто Максим","Kyiv",12,null,null,12]
[263,"Исаков Степан","Kharkiv",130,null,null,130]
[264,"Казанцев Артем","Kyiv",12,null,null,12]
[265,"Казимиренко Сергей","Kyiv",96,null,null,96]
[266,"Казнец Владислав","Kyiv",22,null,null,22]
[267,"Калацей Александр","Кировоград",35,null,null,35]
[268,"Калашник Илья","Харьков",95,null,null,95]
[269,"Калиниченко Павел","Мелитополь",70,null,null,70]
[270,"Калита Дмитрий","Kharkiv",50,null,null,50]
[271,"Каневский Игорь","Одесса",35,null,null,35]
[272,"Карапуз Владимир","Kharkiv",15,null,null,15]
[273,"Карафасе Виталий","Mariupol",174,174,"2018-02-02",0]
[274,"Карацей",null,30,null,null,30]
[275,"Карпив Тарас","Львов",35,null,null,35]
[276,"Карпов Андрей","Kharkiv",10,null,null,10]
{"$rows_empty":10}
[277,"Карпюк Олег","Харьков",10,null,null,{"$f":"D360-E360","v":10}]
[278,"Катаев Константин","Kharkiv",7,null,null,7]
[279,"Катрич Владислав","Харьков",25,null,null,25]
[280,"Квасников Рома","Kharkiv",48,null,null,48]
[281,"Кедровский Михаил","Киев",270,null,null,270]
[282,"Кетов","Kharkiv",7,null,null,7]
[283,"Кинзикеев Влад","Киев",35,null,null,35]
[284,"Киселев Игорь",null,45,null,null,45]
[285,"Клименко Александр","Kharkiv",20,null,null,20]
[286,"Клименко Денис","Харьков",35,null,null,35]
[287,"Клименко Сергей","Kyiv",54,null,null,54]
[288,"Клименков Антон","Kharkiv",70,null,null,70]
[289,"Ковалев Александр","Лохвица",70,null,null,70]
[290,"Ковалев Эдуард","Киев",65,null,null,65]
[291,"Коваленко Александр",null,70,null,null,70]
[292,"Коваленко Станислав","Kharkiv",375,null,null,375]
[293,"Коваль Вячеслав","Харьков",70,null,null,70]
[294,"Кованов Андрей",null,35,null,null,35]
[295,"Кожухарь Игорь","Odessa",276,null,null,276]
[296,"Козинец Владислав","Kyiv",74,null,null,74]
[297,"Козленко Андрей",null,279,null,null,279]
[298,"Козликин Дмитрий","Харьков",70,null,null,70]
[299,"Козлова Дарина","Санкт-Перербург",15,null,null,15]
[300,"Козлюк Виталий","Ровно",25,null,null,25]
[301,"Козырь Александр","Kharkiv",15,null,null,15]
[302,"Колесник Павел","Kyiv",24,null,null,24]
[303,"Кононенко Алекс","Kharkiv",98,null,null,98]
[304,"Кононенко Геннадий","Харьков",40,null,null,40]
[305,"Копервассер Эдуард","Харьков",35,null,null,35]
[306,"Корбут Виталий","Kyiv",12,null,null,12]
[307,"Коренев Сергей",null,135,null,null,135]
[308,"Коренецкий Евгений","Krivoi Rog",89,null,null,89]
[309,"Корецкий Юрий ","Ковель",105,null,null,105]
[310,"Коржан Андрей","Dnepr",20,null,null,20]
[311,"Коробкин Николай","Kharkiv",267,null,null,267]
[312,"Коробкин Семен","Kharkiv",285,null,null,285]
[313,"Короткий Николай","Kharkiv",5,null,null,5]
[314,"Корсаков Денис","Kyiv",12,null,null,12]
[315,"Косидин Артем","Харьков",70,null,null,70]
[316,"Костенко Ян","Харьков",134,null,null,134]
{"$rows_empty":10}
[317,"Костин Александр","Днепр",35,null,null,{"$f":"D410-E410","v":35}]
[318,"Костин Денис","Kharkiv",44,null,null,44]
[319,"Костырко Николай","Киев",488,null,null,488]
[320,"Косяков Дмитрий","Kharkiv",90,null,null,90]
[321,"Котенко Алина","Kharkiv",5,null,null,5]
[322,"Котин Руслан","Харьков",35,null,null,35]
[323,"Котредж Владислав","Kharkiv",16,null,null,16]
[324,"Коцур Максим","Донецк",10,null,null,10]
[325,"Коченков Артем","Cherkassy",24,null,null,24]
[326,"Кочин Игорь","Kharkiv",5,null,null,5]
[327,"Кравченко Сергей","Kharkiv",44,null,null,44]
[328,"Красий Иван","Kharkiv",50,null,null,50]
[329,"Красковский Никита","Мариуполь",5,null,null,5]
[330,"Красников Вячеслав",null,45,null,null,45]
[331,"Кратюк Петр","Любомль",70,null,null,70]
[332,"Крименко Антон","Харьков",30,null,null,30]
[333,"Кроековский Никита","Kharkiv",5,null,null,5]
[334,"Кропов Юрий","Мариуполь",105,null,null,105]
[335,"Круговой Алексей","Харьков",5,null,null,5]
[336,"Крысенко Денис","Новая Каховка",35,null,null,35]
[337,"Куевда Максим","Kharkiv",162,null,null,162]
[338,"Кузнецов Владимир","Харьков",60,null,null,60]
[339,"Кузьмин Евгений","Харьков",70,null,null,70]
[340,"Кулешев Евгений","Kharkiv",20,null,null,20]
[341,"Куликов Юрий","Kharkiv",837,null,null,837]
[342,"Кулковит Алексей","Kharkiv",18,null,null,18]
[343,"Кунченко Антон",null,25,null,null,25]
[344,"Купер Эдуард","Kharkiv",20,null,null,20]
[345,"Куприн Тарас","Фастов",35,null,null,35]
[346,"Куролап Максим","Kyiv",54,null,null,54]
[347,"Курято Валентин","Kyiv",12,null,null,12]
[348,"Кучеренко Саша","Нью-Йорк",120,null,null,120]
[349,"Лавров Максим","Харьков",558,null,null,558]
[350,"Лавров Максим В.","Харьков",163,null,null,163]
[351,"Лазаренко Александр","Киев",35,null,null,35]
[352,"Лактин Сергей","Харьков",20,null,null,20]
[353,"Левченко Богдан","Харьков",35,null,null,35]
[354,"Левченко Евгений","Киев",35,null,null,35]
[355,"Левчук Никита","Kharkiv",5,null,null,5]
[356,"Легеда Максим","Чернигов",160,null,null,160]
{"$rows_empty":10}
[357,"Леонов Михаил","Новомосковск",35,null,null,{"$f":"D460-E460","v":35}]
[358,"Леонтьев Михаил","Харьков",95,null,null,95]
[359,"Леонтьев Михаил","Kharkiv",45,null,null,45]
[360,"Лесничий",null,20,null,null,20]
[361,"Лизин Николай","Kharkiv",426,150,"2018-02-04",276]
[362,"Линник Павел","Kharkiv",86,null,null,86]
[363,"Лисицин Виктор","Луганск",5,null,null,5]
[364,"Лисичкина Юлия","Kharkiv",311,null,null,311]
[365,"Литвинов Дмитрий",null,50,null,null,50]
[366,"Литовченко Константин","Kharkiv",44,null,null,44]
[367,"Литтман Игорь","Kyiv",120,null,null,120]
[368,"Лобурь Александр","Тернополь",35,null,null,35]
[369,"Ловрев Владимир","Kharkiv",7,null,null,7]
[370,"Ловрев Максим","Kharkiv",7,null,null,7]
[371,"Логинов Костя","Kharkiv",5,null,null,5]
[372,"Ломакин Алексей","Харьков",35,null,null,35]
[373,"Лубянный Сергей","Kharkiv",214,null,null,214]
[374,"Луговенко Дмитрий","Kyiv",12,null,null,12]
[375,"Луканов",null,10,null,null,10]
[376,"Лупанов Евгений","Харьков",20,null,null,20]
[377,"Лучко Игорь","Харьков",30,null,null,30]
[378,"Лысенко Андрей","Горловка",35,null,null,35]
[379,"Лысенко Олег","Киев",303,null,null,303]
[380,"Любинский Алексей","Kharkiv",129,null,null,129]
[381,"Люлько Сергей","Днепр",99,null,null,99]
[382,"Ляхов Сергей","Kharkiv",435,null,null,435]
[383,"Ляшко Илья","Kharkiv",5,null,null,5]
[384,"Магнит Слава","Киев",295,null,null,295]
[385,"Маевский","Kharkiv",7,null,null,7]
[386,"Макарчев Андрей","Kyiv",42,null,null,42]
[387,"Максутов Руслан","Харьков",50,null,null,50]
[388,"Максюта",null,10,null,null,10]
[389,"Маламай Константин","Киев",35,null,null,35]
[390,"Малетыч Иван","Львов",70,null,null,70]
[391,"Малишук Вадим","Запорожье",40,null,null,40]
[392,"Малько Геннадий","Старобельск",519,null,null,519]
[393,"Мальцев Денис","Харьков",5,null,null,5]
[394,"Мальцев Дмитрий","Харьков",35,null,null,35]
[395,"Малюченко Андрей",null,35,null,null,35]
[396,"Манишенко Александр","Харьков",35,null,null,35]
{"$rows_empty":10}
[397,"Манько Сергей","Kharkiv",10,null,null,{"$f":"D510-E510","v":10}]
[398,"Марафонов Евгений","Kyiv",12,null,null,12]
[399,"Маргаров Гарик","Kharkiv",6,null,null,6]
[400,"Мартыненко Максим","Kharkiv",185,null,null,185]
[401,"Мартынов Александр",null,5,null,null,5]
[402,"Марфонов Евгений","Киев",35,null,null,35]
[403,"Марченко Алексей","Киев",105,null,null,105]
[404,"Марченко Андрей",null,135,null,null,135]
[405,"Марченко Илья","Киев",35,null,null,35]
[406,"Марченко Костя","Донецк",65,null,null,65]
[407,"Марченко Максим","Харьков",70,null,null,70]
[408,"Марченко Николай","Kharkiv",5,null,null,5]
[409,"Маскаленко Илья","Kharkiv",20,null,null,20]
[410,"Маслов Дмитрий ","Киев",70,null,null,70]
[411,"Масляный Евгений","Александрия",115,null,null,115]
[412,"Матвийчук Радион","Харьков",10,null,null,10]
[413,"Матерацкий Виталий",null,65,null,null,65]
[414,"Матус Стас","Kyiv",96,null,null,96]
[415,"Матюшкин Евгений","Одесса",245,null,null,245]
[416,"Машира Евгений",null,30,null,null,30]
[417,"Мащенко Михаил","Kyiv",278,null,null,278]
[418,"Мебурнута Артур","Харьков",169,null,null,169]
[419,"Меллин Михаил","Полтава",245,null,null,245]
[420,"Мельников Евгений","Kharkiv",20,null,null,20]
[421,"Мельничук Юрий","Львов",35,null,null,35]
[422,"Меничий",null,10,null,null,10]
[423,"Милькус Олег","Харьков",234,null,null,234]
[424,"Мирный Вячеслав","Kharkiv",5,null,null,5]
[425,"Мироненко Павел","Сумы",370,null,null,370]
[426,"Мирошник Антон",null,15,null,null,15]
[427,"Митрофанов Динила","Kharkiv",22,null,null,22]
[428,"Михайлик Андрей","Харьков",5,null,null,5]
[429,"Мишин Юрий","Днепрорудный",109,null,null,109]
[430,"Мищанин Эдуард","Ровно",25,null,null,25]
[431,"Мищенко",null,30,null,null,30]
[432,"Могчаров Андрей","Kharkiv",31,null,null,31]
[433,"Можаев Максим","Kharkiv",18,null,null,18]
[434,"Можаев Роман","Kyiv",42,null,null,42]
[435,"Мокан Сергей","Херсон",35,null,null,35]
[436,"Мокринский Александр","Ровно",35,null,null,35]
{"$rows_empty":10}
[437,"Моксютов Роман","Kharkiv",25,null,null,{"$f":"D560-E560","v":25}]
[438,"Момот Андрей","Kharkiv",219,null,null,219]
[439,"Монько Сергей","Харьков",15,null,null,15]
[440,"Морару Эдуард","Kyiv",288,null,null,288]
[441,"Мороз  Алексей","Полтава",40,null,null,40]
[442,"Мороз Денис","Харьков",40,null,null,40]
[443,"Мортания Александр","Kharkiv",25,null,null,25]
[444,"Мосейчук Егор","Олевск",40,null,null,40]
[445,"Москаленко Максим","Киев",453,null,null,453]
[446,"Мудрицкий Денис","Киев",95,null,null,95]
[447,"Мукин Александр","Мариуполь",35,null,null,35]
[448,"Мулик Андрей","Ровно",105,null,null,105]
[449,"Мун",null,10,null,null,10]
[450,"Мыкало Роман","Запорожье",5,null,null,5]
[451,"Мясоед Андрей","Киев",140,null,null,140]
[452,"Назарчук Богдан","Киев",70,null,null,70]
[453,"Наплетов Алексей","Харьков",50,null,null,50]
[454,"Нгуен Виктор","Kharkiv",120,null,null,120]
[455,"Недвига Павел","Киев",85,null,null,85]
[456,"Нерачетоа Антон","Kharkiv",5,null,null,5]
[457,"Нестеров Юрий","Харьков",258,null,null,258]
[458,"Нешков Василий","Харьков",5,null,null,5]
[459,"Ниден Виктор","Kharkiv",10,null,null,10]
[460,"Нижник Александр","Харьков",10,null,null,10]
[461,"Николаенко Вячеслав","Vishneve",12,null,null,12]
[462,"Никольчук Александр","Харьков",40,null,null,40]
[463,"Никоненко Артем","Kharkiv",83,null,null,83]
[464,"Новиков Сергей","Kharkiv",410,null,null,410]
[465,"Обедин Мирон",null,120,null,null,120]
[466,"Овсянников Олег","Запорожье",159,null,null,159]
[467,"Овчинников Никита","Kyiv",12,null,null,12]
[468,"Оганесян Армен","Сумы",191,null,null,191]
[469,"Огиенко Артем","Харьков",110,null,null,110]
[470,"Олег Олег","Kyiv",96,null,null,96]
[471,"Олейник Максим","Харьков",55,null,null,55]
[472,"Олейник Юрий","Львов",35,null,null,35]
[473,"Олейников Александр","Херсон",35,null,null,35]
[474,"Олексенко Виолетта","Харьков",10,null,null,10]
[475,"Ольховский Алексей","Kharkiv",685,null,null,685]
[476,"Ольховский Роман","Kharkiv",6,null,null,6]
{"$rows_empty":10}
[477,"Онищенко Александр","Kharkiv",112,null,null,{"$f":"D610-E610","v":112}]
[478,"Орлов Виктор","Мелитополь",70,null,null,70]
[479,"Осташевский Иван","Херсон",99,null,null,99]
[480,"Павлишин Олег","Львов",35,null,null,35]
[481,"Павловский Денис","Kyiv",12,null,null,12]
[482,"Падченко Павел","Kyiv",189,null,null,189]
[483,"Пантеенко Андрей",null,413,null,null,413]
[484,"Пантелеев Андрей","Kharkiv",11,null,null,11]
[485,"Пантенко Александр","Kharkiv",88,null,null,88]
[486,"Панченко Владимир","Киев",140,null,null,140]
[487,"Панченко Роман",null,10,null,null,10]
[488,"Панько Александр",null,50,null,null,50]
[489,"Папакин Виталий","Мариуполь",75,null,null,75]
[490,"Папян Арутюн","Чернигов",160,null,null,160]
[491,"Парфиров Вадим","Kharkiv",23,null,null,23]
[492,"Парфирова Елена","Kharkiv",7,null,null,7]
[493,"Паршин Дмитрий","Kharkiv",56,null,null,56]
[494,"Пасько Михаил","Харьков",10,null,null,10]
[495,"Педоренко Александр",null,189,null,null,189]
[496,"Пелеганов Максим","Харьков",5,null,null,5]
[497,"Пелепак Виталий","Мариуполь",60,null,null,60]
[498,"Пелих Андрей","Харьков",35,null,null,35]
[499,"Пеловородов Денис",null,30,null,null,30]
[500,"Перегудов Константин",null,204,null,null,204]
[501,"Передереев Артем","Сумы",5,null,null,5]
[502,"Перес Владимир","Харьков",5,null,null,5]
[503,"Пересунко Алексей",null,393,null,null,393]
[504,"Перусенко Александр","Kharkiv",88,null,null,88]
[505,"Перченко Павел",null,30,null,null,30]
[506,"Петров Александр","Moscow",70,null,null,70]
[507,"Петров Андрей",null,90,null,null,90]
[508,"Петрусенко Михаил","Kharkiv",300,null,null,300]
[509,"Петрусенко Руслан","Кривой рог",35,null,null,35]
[510,"Петрущенков Андрей","Запорожье",308,null,null,308]
[511,"Петюков Вадим","Харьков",5,null,null,5]
[512,"Пещеров Евгений",null,30,null,null,30]
[513,"Пивоваров Павел","Ровно",35,null,null,35]
[514,"Пилипенко Антон","Kyiv",12,null,null,12]
[515,"Погодин Александр","Одесса",10,null,null,10]
[516,"Погосян Хачатур","Харьков",15,null,null,15]
{"$rows_empty":10}
[517,"Подзолкин Антон","Kyiv",42,null,null,{"$f":"D660-E660","v":42}]
[518,"Полегаев Максим","Kharkiv",65,null,null,65]
[519,"Полиновский Анатолий",null,85,null,null,85]
[520,"Положий Сергей","Dnepr",26,null,null,26]
[521,"Полупаненко Алексей","Kharkiv",417,null,null,417]
[522,"Полупанов",null,5,null,null,5]
[523,"Полюхович Саша","Киев",35,null,null,35]
[524,"Поляков Артур","Харьков",35,null,null,35]
[525,"Поляновский Анатолий","Харьков",35,null,null,35]
[526,"Поляхов Артем","Харьков",45,null,null,45]
[527,"Понамарев Дмитрий","Харьков",95,null,null,95]
[528,"Понамаренко Сергей",null,5,null,null,5]
[529,"Попов Дмитрий","Kharkiv",135,null,null,135]
[530,"Попов Максим","Киев",35,null,null,35]
[531,"Попович Сергей",null,5,null,null,5]
[532,"Порохнюк Андрей","Kyiv",24,null,null,24]
[533,"Потемкин Влад","Kharkiv",114,null,null,114]
[534,"Правка Владимир ","Кривой рог",270,null,null,270]
[535,"Предыбайло Юрий","Харьков",362,null,null,362]
[536,"Прищепа Ян","Запорожье",70,null,null,70]
[537,"Проголаев Максим","Kharkiv",88,null,null,88]
[538,"Прокофьев Павел","Donetsk",115,null,null,115]
[539,"Пронь Андрей","Харьков",10,null,null,10]
[540,"Проц Александр","Черновцы",35,null,null,35]
[541,"Проценко Денис","Kyiv",524,100,"2018-02-03",424]
[542,"Прысевко Михаил","Kyiv",12,null,null,12]
[543,"Прыхид Евгений","Киев",105,null,null,105]
[544,"Пугач Павел","Kyiv",96,null,null,96]
[545,"Пугачев Александр",null,199,null,null,199]
[546,"Пугачев Алексей","Киев",293,null,null,293]
[547,"Пушкарева Мая","Краматорск",70,null,null,70]
[548,"Пышняк Николай","Dvurechnoe",272,null,null,272]
[549,"Пятак","Kharkiv",15,null,null,15]
[550,"Пятах Леонид","Kharkiv",15,null,null,15]
[551,"Радинский Леонид","Харьков",35,null,null,35]
[552,"Рапацкий Сергей","Желтые Воды",100,null,null,100]
[553,"Ратушный Слава","Kyiv",42,null,null,42]
[554,"Ребезнюк Назар ","Львов",99,null,null,99]
[555,"Резников Максим","Kharkiv",5,null,null,5]
[556,"Рейниш Илья","Киев",99,null,null,99]
{"$rows_empty":10}
[557,"Рищенко Сергей",null,10,null,null,{"$f":"D710-E710","v":10}]
[558,"Роговский Роман","Киев",95,null,null,95]
[559,"Рогозин Сергей","Днепрорудный",15,null,null,15]
[560,"Родинский Леонид","Kharkiv",40,null,null,40]
[561,"Родионов Арсений","Kharkiv",10,null,null,10]
[562,"Родионов Кирилл","Kharkiv",20,null,null,20]
[563,"Родочинский Олег","Kyiv",42,null,null,42]
[564,"Рожановский Борис","Киев",105,null,null,105]
[565,"Рожинский Эрик","Запорожье",698,null,null,698]
[566,"Рожок Ярослав",null,10,null,null,10]
[567,"Роньшин Максим","Киев",610,null,null,610]
[568,"Рубайло Роман","Полтава",5,null,null,5]
[569,"Руденко Вадим","Kyiv",54,null,null,54]
[570,"Руденко Юрий","Kyiv",24,null,null,24]
[571,"Рудик Дима","Kyiv",54,null,null,54]
[572,"Рудой Андрей","Харьков",35,null,null,35]
[573,"Рудык Максим","Бердянск",45,null,null,45]
[574,"Рунович Богдан","Запорожье",149,null,null,149]
[575,"Рыжко Максим","Kyiv",106,null,null,106]
[576,"Рябко Олександр","Запорожье",65,null,null,65]
[577,"Рядинский Леонид","Харьков",70,null,null,70]
[578,"Ряполов СН","Харьков",35,null,null,35]
[579,"Савельев Дмитрий",null,105,null,null,105]
[580,"Савенко Евгений","Kharkiv",601,null,null,601]
[581,"Савин Юрий","Одесса",100,null,null,100]
[582,"Савченко Роман","Полтава",125,null,null,125]
[583,"Савчук Алексей","Ровно",20,null,null,20]
[584,"Саженков Алексей","Днепр",35,null,null,35]
[585,"Саксеев Сергей","Kharkiv",42,null,null,42]
[586,"Самсоненко Вадим","Сумы",30,null,null,30]
[587,"Сапогин Алексей","Kharkiv",22,null,null,22]
[588,"Сарадян Эрик","Харьков",135,null,null,135]
[589,"Сафонов","Kharkiv",20,null,null,20]
[590,"Сафонов Алексей","Сумы",65,null,null,65]
[591,"Свердлюк Тарас","Ровно",105,null,null,105]
[592,"Свичкарев Тарас","Киров",10,null,null,10]
[593,"Семеков Егор",null,35,null,null,35]
[594,"Семенов Брик","Kyiv",96,null,null,96]
[595,"Семеренков Сергей","Kharkiv",15,null,null,15]
[596,"Сербин Александр","Kharkiv",42,null,null,42]
{"$rows_empty":10}
[597,"Сербин Валерий","Харьков",5,null,null,{"$f":"D760-E760","v":5}]
[598,"Сергеев Егор","Харьков",5,null,null,5]
[599,"Сергей Петрович",null,5,null,null,5]
[600,"Сердюк Александр","Kyiv",12,null,null,12]
[601,"Серженко Стас","Kyiv",12,null,null,12]
[602,"Сивоха Александр","Днепр",65,null,null,65]
[603,"Сивуха Роман","Чернигов",260,null,null,260]
[604,"Сидихин Владислав","Kharkiv",20,null,null,20]
[605,"Сидоренко Юрий","Полтава",70,null,null,70]
[606,"Сидоров Дмитрий","Dnepr",219,null,null,219]
[607,"Сидоров Рууслан","Херсон",115,null,null,115]
[608,"Сидорчук Юрий","Shostka",12,null,null,12]
[609,"Синельник Александр","Мариуполь",35,null,null,35]
[610,"Сиропуло Виталий","Гениченск",99,null,null,99]
[611,"Сичкаренко роман","Херсон",35,null,null,35]
[612,"Скляр Владимир",null,35,null,null,35]
[613,"Скосырский А","Краматорск",170,null,null,170]
[614,"Скрипцов Сергей","Kharkiv",15,null,null,15]
[615,"Скударь Валерий","Краматорск",258,null,null,258]
[616,"Слюсарчик Сергей","Харьков",35,null,null,35]
[617,"Смертенко Евгений","Kyiv",42,null,null,42]
[618,"Смирнов Александр","Kyiv",54,null,null,54]
[619,"Смирнов Владимир","Kharkiv",21,null,null,21]
[620,"Сокирко Дмитрий","Киев",404,null,null,404]
[621,"Сокол Сергей","Харьков",30,null,null,30]
[622,"Соколенко Дмитрий","Kharkiv",167,132,"2018-02-01",35]
[623,"Соколов Дмитрий","Харьков",35,null,null,35]
[624,"Соколов Игорь","Kharkiv",225,null,null,225]
[625,"Соловьев Дмитрий",null,120,null,null,120]
[626,"Солодкий Виталий",null,205,null,null,205]
[627,"Солодовников Владислав","Черноморск",35,null,null,35]
[628,"Стадник Максим","Kharkiv",6,null,null,6]
[629,"Станиславский Владимир",null,125,null,null,125]
[630,"Станиславский Феликс",null,50,null,null,50]
[631,"Стрельников",null,10,null,null,10]
[632,"Сухомлин Иван","Мариуполь",5,null,null,5]
[633,"Сытник Сергей","Kharkiv",221,null,null,221]
[634,"Танасюк Татьяна","Kharkiv",55,null,null,55]
[635,"Таран Влад",null,185,null,null,185]
[636,"Тарасенко Антон","Харьков",55,null,null,55]
{"$rows_empty":10}
[637,"Тарасенко Дарья","Харьков",50,null,null,{"$f":"D810-E810","v":50}]
[638,"Тарасенко Олег","Kharkiv",6,null,null,6]
[639,"Тарасюк Антон","Kharkiv",25,null,null,25]
[640,"Тельный Вадим","Харьков",30,null,null,30]
[641,"Тесленко Сергей","Kyiv",131,null,null,131]
[642,"Тильченко Александр","Харьков",35,null,null,35]
[643,"Тищенко Александр","Полтава",204,null,null,204]
[644,"Ткач Александр","Чернигов",170,null,null,170]
[645,"Ткаченко Валентин","Киев",77,null,null,77]
[646,"Ткачук Александр","Киев",30,null,null,30]
[647,"Токарев Олег","Харьков",5,null,null,5]
[648,"Толстогузов Александр","Kharkiv",15,null,null,15]
[649,"Толюпа Степан","Северодонецк",35,null,null,35]
[650,"Тонкой Антон","Kharkiv",349,null,null,349]
[651,"Тосненко","Kharkiv",10,null,null,10]
[652,"Точилкин Николай","Kharkiv",6,null,null,6]
[653,"Трарипов Владислав","Kharkiv",22,null,null,22]
[654,"Третьяков Юрий","Kyiv",360,null,null,360]
[655,"Трош Андрей","Kharkiv",15,null,null,15]
[656,"Трубанев Владимир","Киев",105,null,null,105]
[657,"Трубчайников Роман","Kharkiv",20,null,null,20]
[658,"Трусевич Виталий","Дрогобыч",70,null,null,70]
[659,"Трусов Роман","Kharkiv",15,null,null,15]
[660,"Тулюпа Павел","Харьков",35,null,null,35]
[661,"Уваров Андрей","Львов",70,null,null,70]
[662,"Уманский Михаил","Kharkiv",44,null,null,44]
[663,"Усенко Анатолий","Киев",105,null,null,105]
[664,"Устименко Сергей","Киев",95,null,null,95]
[665,"Уханов Андрей","Светловодск",35,null,null,35]
[666,"Фарахив Игорь","Kharkiv",25,null,null,25]
[667,"Федоренко Денис","Kyiv",96,null,null,96]
[668,"Федоренко Роман","Kyiv",12,null,null,12]
[669,"Федосов Олег","Kharkiv",103,null,null,103]
[670,"Федотов Евгений","Харьков",30,null,null,30]
[671,"Фидчук Евгений","Киев",99,null,null,99]
[672,"Филинский Александр","Kyiv",245,null,null,245]
[673,"Филипов Антон","Kharkiv",55,null,null,55]
[674,"Филипчук Александр","Ровно",105,null,null,105]
[675,"Филоненко Олег","Харьков",5,null,null,5]
[676,"Фиров Максим","Kyiv",96,null,null,96]
{"$rows_empty":10}
[677,"Фомучев Игорь","Харьков",35,null,null,{"$f":"D860-E860","v":35}]
[678,"Франтов Павел","Kyiv",66,null,null,66]
[679,"Халамай Костя","Киев",35,null,null,35]
[680,"Хворостенко",null,5,null,null,5]
[681,"Хворостин Дмитрий","Желтые воды",35,null,null,35]
[682,"Хилько Тарас","Kharkiv",171,null,null,171]
[683,"Хлебонов Евгений","Кривой рог",35,null,null,35]
[684,"Хованов Андрей","Харьков",21,null,null,21]
[685,"Хозин Валерий","Днепр",396,null,null,396]
[686,"Хоменко Николай",null,15,null,null,15]
[687,"Хомяков Дмитрий","Kharkiv",380,null,null,380]
[688,"Хропач Валерий","Харьков",110,null,null,110]
[689,"Хурсенко Олег",null,99,null,null,99]
[690,"Хыля","Kharkiv",76,null,null,76]
[691,"Цвиркун Денис","Чернигов",35,null,null,35]
[692,"Циганков Геннадий","Старобельск",105,null,null,105]
[693,"Цимбалюк Андрей","Kharkiv",6,null,null,6]
[694,"Цисар Андрей",null,35,null,null,35]
[695,"Цятко Олег","Kyiv",12,null,null,12]
[696,"Чахерев Борис","Харьков",40,null,null,40]
[697,"Чепкий Николай","Киев",362,null,null,362]
[698,"Червень Родион","Poltava",15,null,null,15]
[699,"Черненко Евгений","Харьков",233,null,null,233]
[700,"Чернецкий Алексей","Харьков",35,null,null,35]
[701,"Черницов Роман","Киев",259,null,null,259]
[702,"Черный Тимур","Kharkiv",20,null,null,20]
[703,"Чернякович Евгений","Киев",99,null,null,99]
[704,"Чирков Богдан","Полтава",40,null,null,40]
[705,"Чистяков Александр","Запорожье",130,null,null,130]
[706,"Чмиль Евгений","Чугуев",70,null,null,70]
[707,"Чуйков",null,114,null,null,114]
[708,"Чуйнов Максим","Харьков",10,null,null,10]
[709,"Чумаков Дима","Kharkiv",45,null,null,45]
[710,"Шадрин Илья","Kharkiv",101,null,null,101]
[711,"Шаламай",null,35,null,null,35]
[712,"Шаповал Олег","Kyiv",12,null,null,12]
[713,"Шаповалов Владимир","Харьков",35,null,null,35]
[714,"Шарко Богдан","Житомир",60,null,null,60]
[715,"Шастун Иван","пгт.Куйбышево",35,null,null,35]
[716,"Шевченко Александр","Odessa",490,null,null,490]
{"$rows_empty":10}
[717,"Шевчук Дмитрий","Chernovtsy",12,null,null,{"$f":"D910-E910","v":12}]
[718,"Шемет  Александр","Черноморск",35,null,null,35]
[719,"Шептицкий Назар","Kyiv",192,null,null,192]
[720,"Шеренков Александр","Харьков",40,null,null,40]
[721,"Шиганов Андрей","Львов",305,null,null,305]
[722,"Шидрицкий денис",null,5,null,null,5]
[723,"Шиндылюк Сергей","Киев",60,null,null,60]
[724,"Шинкарев Богдан","Харьков",35,null,null,35]
[725,"Шипо Майк","Kyiv",138,null,null,138]
[726,"Широчук Сергей","Любомль",175,null,null,175]
[727,"Ширяев Сергей","Харьков",5,null,null,5]
[728,"Шишкин Ярослав","Kyiv",204,null,null,204]
[729,"Шкапенко Олег","Kyiv",12,null,null,12]
[730,"Шкарупа Дмитрий",null,35,null,null,35]
[731,"Шкитина Елена","Kharkiv",59,null,null,59]
[732,"Шкуренко Виктория","Павлоград",10,null,null,10]
[733,"Шлец Вадим","Kharkiv",649,null,null,649]
[734,"Шмаков Сергей",null,204,null,null,204]
[735,"Шовковый Владислав","Kharkiv",15,null,null,15]
[736,"Шопин Олег","Slavyansk",5,null,null,5]
[737,"Шостак Алексей",null,75,null,null,75]
[738,"Штанько Александр","Киев",383,null,null,383]
[739,"Щегула",null,10,null,null,10]
[740,"Элвис Дима",null,30,null,null,30]
[741,"Эльзяциев Денис","Киев",35,null,null,35]
[742,"Эсмуганов Рустам","Kyiv",12,null,null,12]
[743,"Юрлов Роман","Харьков",151,null,null,151]
[744,"Якемовский Роман","Хмельницкий",35,null,null,35]
[745,"Яковлев Денис","Харьков",344,null,null,344]
[746,"Яковлев Олег","Бердянск",40,null,null,40]
[747,"Ярема Алексей","Ирпень",285,null,null,285]
[748,"Ярошенко Дима","Kharkiv",30,null,null,30]
[749,"Ясиновский Сергей","Киров",65,null,null,65]
[750,"Ященко Виталий","Харьков",30,null,null,30]

{"sheet":"Лист2","index":1,"n_rows":0,"n_cols":0,"rows_kept":0,"cut":false,"hidden":false,"merged":[]}

{"sheet":"Лист3","index":2,"n_rows":0,"n_cols":0,"rows_kept":0,"cut":false,"hidden":false,"merged":[]}